[Event "Asian Academies Hybrid Chess-ch 2021"]
[Site "Tornelo"]
[Date "2021.11.21"]
[Round "1.1"]
[White "Zaeef Maheen, Chowdhury"]
[Black "Sakline Mostafa, Sajid"]
[Result "0-1"]
[ECO "B45"]
[WhiteElo "1417"]
[BlackElo "1988"]
[Annotator "NA"]
[PlyCount "58"]
[EventDate "2021.11.21"]
[EventCountry "NET"]
[SourceTitle "playchess.com"]
[Source "ChessBase"]
[SourceQuality "1"]
[TimeControl "3600+30"]

1. e4 {[%emt 0:00:06]} c5 {[%emt 0:00:11]} 2. Nf3 {[%emt 0:00:10]} Nc6 {[%emt 0:00:20]} 3. d4 {[%emt 0:00:07]} cxd4 {[%emt 0:00:05]} 4. Nxd4 {[%emt 0:00:11]} Nf6 {[%emt 0:00:05]} 5. Nc3 {[%emt 0:00:19]} e6 {[%emt 0:00:16]} 6. a3 {[%emt 0:01:15]} d5 {[%emt 0:02:34]} 7. Bb5 {[%emt 0:01:56] 7.Bb5 scores better than 7.exd5.} Bd7 {[%emt 0:02:05]} 8. exd5 {[%emt 0:03:13]} exd5 {[%emt 0:01:04]} 9. O-O {[%emt 0:02:34]} Be7 {[%emt 0:06:01]} 10. Re1 {[%emt 0:03:39]} O-O {[%emt 0:00:52]} 11. h3 {[%emt 0:05:04] [#]} h6 $146 {[%emt 0:05:27]} ({Predecessor:} 11... a6 12. Ba4 Nxd4 13. Qxd4 Bxa4 14. Qxa4 Bc5 15. Bg5 h6 16. Bh4 g5 17. Bg3 b5 {0-1 (36) Karjakin,S (2752)-Grachev,B (2612) Chess.com INT 2020}) 12. Bf4 {[%emt 0:05:29]} Rc8 {[%emt 0:02:04]} 13. Bxc6 {[%emt 0:04:02]} bxc6 {[%emt 0:00:41]} 14. Nf3 {[%emt 0:02:04]} Re8 {[%emt 0:08:07]} 15. Ne5 {[%emt 0:02:12]} Bf5 {[%emt 0:01:15]} 16. g4 {[%emt 0:03:34]} Bh7 {[%emt 0:01:26]} 17. Ne2 {[%emt 0:06:23]} c5 {[%emt 0:03:16]} 18. c4 {[%emt 0:05:27]} d4 {[%emt 0:02:52]} 19. Nd3 {[%emt 0:04:49]} Bd6 {[%emt 0:04:19]} 20. Bxd6 {[%emt 0:00:38]} Qxd6 {[%emt 0:00:05]} 21. Ng3 {[%emt 0:06:44]} Rxe1+ {[%emt 0:05:33]} 22. Nxe1 {[%emt 0:00:28]} d3 {[%emt 0:03:36]} 23. Nf5 $2 {[%emt 0:01:36]} (23. Qd2 $17) 23... Bxf5 {[%emt 0:00:11]} 24. gxf5 {[%emt 0:00:18]} d2 {[%emt 0:00:32]} 25. Nc2 {[%emt 0:00:58]} Rd8 {[%emt 0:03:35]} 26. Ne3 $19 {[%emt 0:00:15]} Rb8 {[%emt 0:07:37]} 27. Qc2 {[%emt 0:00:22]} Qd4 {[%emt 0:00:19]} 28. Rb1 {[%emt 0:02:59]} Ne4 {[%emt 0:01:20]} 29. b4 {[%emt 0:02:48]} Re8 {[%emt 0:04:59]} 0-1

[Event "Asian Academies Hybrid Chess-ch 2021"]
[Site "Tornelo"]
[Date "2021.11.21"]
[Round "1.2"]
[White "Manon, Reja Neer"]
[Black "Kazi Afsan Rawnak, Anan"]
[Result "1-0"]
[ECO "B91"]
[WhiteElo "2048"]
[BlackElo "1410"]
[Annotator "NA"]
[PlyCount "65"]
[EventDate "2021.11.21"]
[EventCountry "NET"]
[SourceTitle "playchess.com"]
[Source "ChessBase"]
[SourceQuality "1"]
[TimeControl "3600+30"]

1. e4 {[%emt 0:00:05]} c5 {[%emt 0:00:23]} 2. Nc3 {[%emt 0:00:09]} d6 {[%emt 0:03:53]} 3. g3 {[%emt 0:00:06]} Nf6 {[%emt 0:00:57]} 4. Bg2 {[%emt 0:00:02]} g6 {[%emt 0:01:28]} 5. Nge2 {[%emt 0:00:11]} Bg7 {[%emt 0:01:19]} 6. O-O {[%emt 0:00:09]} O-O {[%emt 0:01:15]} 7. d4 {[%emt 0:00:14]} cxd4 {[%emt 0:01:40]} 8. Nxd4 {[%emt 0:00:03]} a6 {[%emt 0:02:20]} 9. h3 {[%emt 0:00:09]} e5 {[%emt 0:01:47]} 10. Nb3 {[%emt 0:00:22]} Nc6 {[%emt 0:02:54]} 11. Be3 {[%emt 0:01:07]} Be6 {[%emt 0:02:18]} 12. Qd2 {[%emt 0:00:27]} Ne8 {[%emt 0:02:20]} 13. f4 {[%emt 0:01:50]} f5 {[%emt 0:01:32]} 14. Rad1 {[%emt 0:02:21]} Qe7 {[%emt 0:04:05]} 15. exf5 {[%emt 0:03:43]} Bxf5 {[%emt 0:04:21]} 16. Nd5 {[%emt 0:01:50]} Qd8 {[%emt 0:01:06]} 17. fxe5 {[%emt 0:01:15]} Nxe5 {[%emt 0:06:40]} 18. Bg5 {[%emt 0:00:42]} Qb8 {[%emt 0:03:05]} 19. Nd4 {[%emt 0:05:24]} Bd7 {[%emt 0:05:51]} 20. Nb6 {[%emt 0:00:54]} Ra7 {[%emt 0:00:29]} 21. Bd5+ {[%emt 0:00:20]} Kh8 {[%emt 0:01:04]} 22. Rxf8+ {[%emt 0:00:21]} Bxf8 {[%emt 0:00:33]} 23. Nxd7 {[%emt 0:00:05]} Nxd7 {[%emt 0:00:42]} 24. Ne6 {[%emt 0:00:04]} Bg7 {[%emt 0:02:45]} 25. Rf1 {[%emt 0:01:04]} Nc5 {[%emt 0:07:35]} 26. Nxg7 {[%emt 0:03:34]} Nxg7 {[%emt 0:01:30]} 27. Be7 {[%emt 0:00:18]} Nd7 {[%emt 0:02:44]} 28. Qd4 {[%emt 0:02:41]} Ra8 {[%emt 0:04:39]} 29. Rf7 {[%emt 0:06:15]} Ne5 {[%emt 0:02:48]} 30. Bf6 {[%emt 0:05:02]} Nxf7 {[%emt 0:00:56]} 31. Bxg7+ {[%emt 0:00:03]} Kg8 {[%emt 0:00:11]} 32. Qf6 {[%emt 0:00:18]} Qe8 {[%emt 0:00:39]} 33. Be6 $18 {[%emt 0:00:10]} ({Stronger than} 33. Bh6 Qe1+ {[%mdl 64] Double Attack} 34. Kh2 Qe2+ {[%mdl 64] Double Attack} 35. Kg1 Qd1+ 36. Kh2 Qxc2+ 37. Kh1 Qd1+ 38. Kh2 Qe2+ 39. Kh1 Qd1+ 40. Kh2 Qe2+ 41. Kh1 Qd1+ $11) (33. Kf2 $142 Qd7 34. g4) 1-0

[Event "Asian Academies Hybrid Chess-ch 2021"]
[Site "Tornelo"]
[Date "2021.11.21"]
[Round "1.2"]
[White "Husam Al-Dain Abdulhakim Nashe"]
[Black "Galiakbarov, Aldiyar"]
[Result "1-0"]
[ECO "B22"]
[WhiteElo "1342"]
[BlackElo "1141"]
[Annotator "NA RC"]
[PlyCount "67"]
[EventDate "2021.11.21"]
[EventCountry "NET"]
[SourceTitle "playchess.com"]
[Source "ChessBase"]
[SourceQuality "1"]
[TimeControl "3600+30"]

1. e4 {[%emt 0:00:49]} c5 {[%emt 0:01:35]} 2. Nf3 {[%emt 0:00:45]} e6 {[%emt 0:00:05]} 3. c3 {[%emt 0:00:28]} d5 {[%emt 0:00:25]} 4. exd5 {[%emt 0:01:07]} exd5 {[%emt 0:00:42]} 5. d4 {[%emt 0:00:29]} c4 {[%emt 0:00:45]} 6. Bf4 {[%emt 0:00:56]} Nf6 {[%emt 0:00:22]} 7. Nbd2 {[%emt 0:01:52]} Bf5 {[%emt 0:00:16]} 8. Be2 {[%emt 0:01:01]} Bd6 {[%emt 0:00:12]} 9. Ne5 {[%emt 0:05:17]} O-O {[%emt 0:04:14]} 10. O-O {[%emt 0:03:10]} Bxe5 {[%emt 0:01:22]} 11. dxe5 {[%emt 0:02:54]} Ne4 {[%emt 0:00:13]} 12. Nf3 {[%emt 0:01:58]} Nc6 {[%emt 0:00:24]} 13. Nd4 {[%emt 0:00:58]} Nxd4 {[%emt 0:00:32]} 14. Qxd4 {[%emt 0:00:36]} Be6 {[%emt 0:01:38]} 15. f3 {[%emt 0:01:06]} Ng5 {[%emt 0:02:40]} 16. h4 {[%emt 0:01:22]} Nh3+ {[%emt 0:00:26]} 17. gxh3 {[%emt 0:00:19]} Qxh4 {[%emt 0:00:19]} 18. Bh2 {[%emt 0:00:50]} Qxh3 {[%emt 0:00:42]} 19. Kh1 {[%emt 0:01:36]} f6 {[%emt 0:03:23]} 20. Rg1 {[%emt 0:01:21]} fxe5 {[%emt 0:00:16]} 21. Qxe5 {[%emt 0:00:15]} g6 {[%emt 0:00:04]} 22. Rg3 {[%emt 0:02:59]} Qf5 {[%emt 0:00:11]} 23. Rg5 {[%emt 0:00:10]} Qf7 {[%emt 0:00:24]} 24. Bg1 {[%emt 0:01:10]} h6 {[%emt 0:01:01]} 25. Bd4 {[%emt 0:01:03]} Kh7 {[%emt 0:00:04]} 26. Rxg6 {[%emt 0:04:48]} Qxg6 {[%emt 0:03:11]} 27. Rg1 {[%emt 0:00:10]} Rg8 {[%emt 0:00:19]} 28. Rxg6 {[%emt 0:00:50]} Rxg6 {[%emt 0:00:22]} 29. Bd1 {[%emt 0:00:17]} Rag8 {[%emt 0:01:55]} 30. Bc2 {[%emt 0:00:13]} Bf7 {[%emt 0:00:13]} 31. Qf6 {[%emt 0:00:37]} h5 {[%emt 0:00:50]} 32. Qxf7+ {[%emt 0:00:15]} Kh6 {[%emt 0:00:03]} 33. Be3+ {[%emt 0:00:16]} Rg5 {[%emt 0:00:06]} 34. Qh7# {[%emt 0:00:08]} 1-0

[Event "Asian Academies Hybrid Chess-ch 2021"]
[Site "Tornelo"]
[Date "2021.11.21"]
[Round "1.2"]
[White "Naimanov, Galymzhan"]
[Black "Khaled waleed Abdullah"]
[Result "0-1"]
[ECO "B34"]
[WhiteElo "1256"]
[BlackElo "1568"]
[Annotator "NA RC"]
[PlyCount "78"]
[EventDate "2021.11.21"]
[EventCountry "NET"]
[SourceTitle "playchess.com"]
[Source "ChessBase"]
[SourceQuality "1"]
[TimeControl "3600+30"]

1. e4 {[%emt 0:04:34]} c5 {[%emt 0:00:38]} 2. Nf3 {[%emt 0:00:08]} g6 {[%emt 0:00:03]} 3. d4 {[%emt 0:00:37]} cxd4 {[%emt 0:00:08]} 4. Nxd4 {[%emt 0:02:51]} Bg7 {[%emt 0:00:08]} 5. Be3 {[%emt 0:01:39]} Nc6 {[%emt 0:00:11]} 6. Nc3 {[%emt 0:05:33]} Nf6 {[%emt 0:00:07]} 7. Be2 {[%emt 0:00:34]} Qa5 {[%emt 0:01:19]} 8. Qd2 {[%emt 0:00:53]} Nxe4 {[%emt 0:03:24]} 9. Nxc6 {[%emt 0:05:17]} Qxc3 {[%emt 0:00:30]} 10. Qxc3 {[%emt 0:06:43]} Nxc3 {[%emt 0:02:26]} 11. Nd4 {[%emt 0:01:10]} Nd5 {[%emt 0:01:26]} 12. O-O-O {[%emt 0:01:16]} Nxe3 {[%emt 0:02:17]} 13. fxe3 {[%emt 0:00:05]} O-O {[%emt 0:00:17]} 14. Bf3 {[%emt 0:01:45]} a6 {[%emt 0:03:32]} 15. Nb3 {[%emt 0:00:52]} d6 {[%emt 0:02:21]} 16. Na5 {[%emt 0:00:26]} Ra7 {[%emt 0:03:49]} 17. Rd3 {[%emt 0:07:48]} b6 {[%emt 0:07:59]} 18. Nc6 {[%emt 0:05:16]} Rc7 {[%emt 0:00:08]} 19. Rb3 {[%emt 0:01:55]} b5 {[%emt 0:01:58]} 20. Ra3 {[%emt 0:04:02]} e6 {[%emt 0:27:40]} 21. Nb4 {[%emt 0:04:17]} Ra7 {[%emt 0:00:39]} 22. Nc6 {[%emt 0:00:38]} Rc7 {[%emt 0:00:10]} 23. Nb4 {[%emt 0:00:31]} d5 {[%emt 0:01:10]} 24. Nxa6 {[%emt 0:07:42]} Ra7 {[%emt 0:00:18]} 25. Nb4 {[%emt 0:00:10]} Rxa3 {[%emt 0:00:05]} 26. bxa3 {[%emt 0:00:02]} Bb7 {[%emt 0:01:13]} 27. Be2 {[%emt 0:00:34]} Ra8 {[%emt 0:00:10]} 28. Bxb5 {[%emt 0:00:26]} Rxa3 {[%emt 0:00:08]} 29. Kb1 {[%emt 0:00:36]} Rxe3 {[%emt 0:00:31]} 30. Nd3 {[%emt 0:01:38]} e5 {[%emt 0:02:23]} 31. Nc5 {[%emt 0:01:22]} Ba8 {[%emt 0:00:13]} 32. a4 {[%emt 0:00:21]} e4 {[%emt 0:00:26]} 33. Rd1 {[%emt 0:01:10]} Bf8 {[%emt 0:02:08]} 34. Nd7 {[%emt 0:00:22]} Bg7 {[%emt 0:00:47]} 35. c4 {[%emt 0:01:56]} d4 {[%emt 0:06:11]} 36. a5 {[%emt 0:01:48]} Ra3 {[%emt 0:00:06]} 37. a6 {[%emt 0:01:20]} d3 {[%emt 0:00:04]} 38. Kc1 {[%emt 0:00:01]} Bc3 {[%emt 0:00:05]} 39. Nf6+ {[%emt 0:01:04]} Kh8 {[%emt 0:00:20]} 0-1

[Event "Asian Academies Hybrid Chess-ch 2021"]
[Site "Tornelo"]
[Date "2021.11.21"]
[Round "1.3"]
[White "Ridwan, Rabbani"]
[Black "Shadat, Kibria Ayaan"]
[Result "0-1"]
[ECO "D06"]
[WhiteElo "1170"]
[BlackElo "1623"]
[Annotator "NA"]
[PlyCount "54"]
[EventDate "2021.11.21"]
[EventCountry "NET"]
[SourceTitle "playchess.com"]
[Source "ChessBase"]
[SourceQuality "1"]
[TimeControl "3600+30"]

1. d4 {[%emt 0:00:27]} d5 {[%emt 0:00:27]} 2. c4 {[%emt 0:00:31]} Nf6 {[%emt 0:00:07]} 3. cxd5 {[%emt 0:00:33]} Qxd5 {[%emt 0:00:35]} 4. Nc3 {[%emt 0:00:38]} Qa5 {[%emt 0:01:29]} 5. Bd2 {[%emt 0:02:00]} c6 {[%emt 0:08:57]} 6. e4 {[%emt 0:02:09]} Qb6 {[%emt 0:02:38]} 7. Bc1 {[%emt 0:08:27]} e6 {[%emt 0:02:42]} 8. a3 {[%emt 0:01:21]} Nbd7 {[%emt 0:02:58]} 9. Nf3 {[%emt 0:02:00]} Qc7 {[%emt 0:01:55]} 10. Bd3 {[%emt 0:03:24]} e5 {[%emt 0:02:37]} 11. dxe5 {[%emt 0:03:24]} Nxe5 {[%emt 0:00:12]} 12. Nxe5 {[%emt 0:00:34]} Qxe5 {[%emt 0:00:10]} 13. h3 {[%emt 0:00:47]} Bc5 {[%emt 0:04:10]} 14. O-O {[%emt 0:02:07]} Bxh3 {[%emt 0:08:02]} 15. gxh3 {[%emt 0:09:58]} Qg3+ {[%emt 0:00:29]} 16. Kh1 {[%emt 0:00:19]} Qxh3+ {[%emt 0:00:20]} 17. Kg1 {[%emt 0:03:59]} O-O-O {[%emt 0:12:58]} 18. Re1 {[%emt 0:10:03]} Rxd3 {[%emt 0:01:35]} 19. Qxd3 {[%emt 0:02:13]} Qxd3 {[%emt 0:00:23]} 20. Bf4 {[%emt 0:01:33]} Ng4 {[%emt 0:00:48]} 21. Be3 {[%emt 0:03:51]} Nxe3 {[%emt 0:01:19]} 22. fxe3 {[%emt 0:00:15]} Bxe3+ {[%emt 0:00:03]} 23. Rxe3 {[%emt 0:00:27]} Qxe3+ {[%emt 0:00:05]} 24. Kf1 {[%emt 0:04:32]} Qf3+ {[%emt 0:00:26]} 25. Ke1 {[%emt 0:00:20]} Qh1+ {[%emt 0:00:04]} 26. Kd2 {[%emt 0:07:38]} Rd8+ {[%emt 0:18:01]} 27. Kc2 {[%emt 0:00:00]} Qxa1 {[%emt 0:00:00]} 0-1

[Event "Asian Academies Hybrid Chess-ch 2021"]
[Site "Tornelo"]
[Date "2021.11.21"]
[Round "1.3"]
[White "Newansa, M Esandi"]
[Black "Akrami, Tohid"]
[Result "1-0"]
[ECO "D00"]
[WhiteElo "1121"]
[BlackElo "1075"]
[Annotator "NA RC"]
[PlyCount "99"]
[EventDate "2021.11.21"]
[EventCountry "NET"]
[SourceTitle "playchess.com"]
[Source "ChessBase"]
[SourceQuality "1"]
[TimeControl "3600+30"]

1. d4 {[%emt 0:00:30]} d5 {[%emt 0:01:05]} 2. Bf4 {[%emt 0:00:05]} Bf5 {[%emt 0:00:13]} 3. e3 {[%emt 0:00:05]} e6 {[%emt 0:00:10]} 4. c3 {[%emt 0:00:05]} Bd6 {[%emt 0:00:09]} 5. Bg3 {[%emt 0:00:08]} c5 {[%emt 0:00:13]} 6. Nd2 {[%emt 0:00:08]} Nc6 {[%emt 0:00:34]} 7. Ngf3 {[%emt 0:00:12]} Nf6 {[%emt 0:00:21]} 8. Bb5 {[%emt 0:00:16]} Bxg3 {[%emt 0:00:35]} 9. hxg3 {[%emt 0:00:12]} Qb6 {[%emt 0:00:14]} 10. Qb3 {[%emt 0:00:41]} c4 {[%emt 0:00:22]} 11. Qa4 {[%emt 0:00:26]} a6 {[%emt 0:00:21]} 12. Bxc6+ {[%emt 0:00:04]} bxc6 {[%emt 0:00:39]} 13. Qa3 {[%emt 0:00:11]} Rb8 {[%emt 0:00:16]} 14. b3 {[%emt 0:00:13]} cxb3 {[%emt 0:00:29]} 15. axb3 {[%emt 0:00:10]} Bc2 {[%emt 0:00:46]} 16. O-O {[%emt 0:00:44]} Bd3 {[%emt 0:01:16]} 17. Rfc1 {[%emt 0:00:11]} Kd7 {[%emt 0:05:37]} 18. Ne5+ {[%emt 0:00:04]} Ke8 {[%emt 0:03:42]} 19. Nxd3 {[%emt 0:00:03]} Ra8 {[%emt 0:00:18]} 20. Nc5 {[%emt 0:00:28]} Nd7 {[%emt 0:03:34]} 21. Nxd7 {[%emt 0:00:22]} Kxd7 {[%emt 0:00:13]} 22. c4 {[%emt 0:00:04]} a5 {[%emt 0:00:19]} 23. cxd5 {[%emt 0:00:04]} cxd5 {[%emt 0:00:13]} 24. Qa4+ {[%emt 0:00:06]} Ke7 {[%emt 0:00:32]} 25. Rc6 {[%emt 0:00:06]} Qb4 {[%emt 0:00:36]} 26. Rc7+ {[%emt 0:00:35]} Kf6 {[%emt 0:00:15]} 27. Qa2 {[%emt 0:01:34]} Rhc8 {[%emt 0:00:21]} 28. Rac1 {[%emt 0:00:08]} Rxc7 {[%emt 0:00:16]} 29. Rxc7 {[%emt 0:00:03]} a4 {[%emt 0:00:07]} 30. bxa4 {[%emt 0:00:10]} Rxa4 {[%emt 0:00:12]} 31. Qc2 {[%emt 0:00:05]} Qa5 {[%emt 0:01:07]} 32. Rc5 {[%emt 0:00:12]} Qb4 {[%emt 0:00:23]} 33. Nf3 {[%emt 0:00:28]} Ra1+ {[%emt 0:00:21]} 34. Kh2 {[%emt 0:00:02]} Qb1 {[%emt 0:00:56]} 35. Qxb1 {[%emt 0:00:05]} Rxb1 {[%emt 0:00:12]} 36. Ne5 {[%emt 0:00:02]} Rb7 {[%emt 0:00:17]} 37. Kh3 {[%emt 0:00:16]} Kg5 {[%emt 0:00:25]} 38. e4 {[%emt 0:00:23]} dxe4 {[%emt 0:00:19]} 39. Nxf7+ {[%emt 0:00:06]} Kf6 {[%emt 0:00:17]} 40. Nd6 {[%emt 0:00:08]} Rb1 {[%emt 0:00:13]} 41. Nxe4+ {[%emt 0:00:03]} Kf7 {[%emt 0:00:40]} 42. Ng5+ {[%emt 0:00:06]} Kg6 {[%emt 0:00:43]} 43. Nxe6 {[%emt 0:00:06]} Kf6 {[%emt 0:01:54]} 44. Nf4 {[%emt 0:00:13]} g5 {[%emt 0:00:18]} 45. Nd5+ {[%emt 0:00:18]} Kg6 {[%emt 0:00:11]} 46. Kg4 {[%emt 0:00:17]} Rb3 {[%emt 0:00:29]} 47. Rc6+ {[%emt 0:00:09]} Kg7 {[%emt 0:01:17]} 48. Kxg5 {[%emt 0:00:04]} h6+ {[%emt 0:00:38]} 49. Rxh6 {[%emt 0:00:09]} Rb5 {[%emt 0:00:10]} 50. Rd6 {[%emt 0:00:04]} 1-0

[Event "Asian Academies Hybrid Chess-ch 2021"]
[Site "Tornelo"]
[Date "2021.11.21"]
[Round "1.4"]
[White "Ahmed, Walijah"]
[Black "Wadifa, Ahmed"]
[Result "0-1"]
[ECO "B48"]
[WhiteElo "1975"]
[BlackElo "1759"]
[Annotator "NA"]
[PlyCount "114"]
[EventDate "2021.11.21"]
[EventCountry "NET"]
[SourceTitle "playchess.com"]
[Source "ChessBase"]
[SourceQuality "1"]
[TimeControl "3600+30"]

1. e4 {[%emt 0:00:08]} c5 {[%emt 0:00:07]} 2. Nf3 {[%emt 0:00:05]} e6 {[%emt 0:00:04]} 3. d4 {[%emt 0:00:05]} cxd4 {[%emt 0:00:04]} 4. Nxd4 {[%emt 0:00:06]} Nc6 {[%emt 0:00:07]} 5. Nc3 {[%emt 0:00:20]} a6 {[%emt 0:00:08]} 6. Be3 {[%emt 0:01:09]} Qc7 {[%emt 0:00:14]} 7. Qf3 {[%emt 0:01:01]} Nf6 {[%emt 0:01:12]} 8. Qg3 {[%emt 0:02:15]} Qxg3 {[%emt 0:00:41]} 9. hxg3 {[%emt 0:00:23]} Ng4 {[%emt 0:00:42]} 10. O-O-O {[%emt 0:03:19]} Bc5 {[%emt 0:03:05]} 11. Be2 {[%emt 0:01:24]} Nxe3 {[%emt 0:00:36]} 12. fxe3 {[%emt 0:00:04]} d6 {[%emt 0:02:12]} 13. Na4 {[%emt 0:04:55]} Bd7 {[%emt 0:11:34]} 14. Nxc5 {[%emt 0:03:38]} dxc5 {[%emt 0:00:09]} 15. Nb3 {[%emt 0:01:40]} Ne5 {[%emt 0:03:08]} 16. Nxc5 {[%emt 0:01:53]} Bc6 {[%emt 0:00:14]} 17. Rh5 {[%emt 0:05:57]} Ng6 {[%emt 0:03:07]} 18. Rdh1 {[%emt 0:03:58]} h6 {[%emt 0:00:34]} 19. Bf3 {[%emt 0:01:05]} Rc8 {[%emt 0:03:10]} 20. Nd3 {[%emt 0:04:27]} Ke7 {[%emt 0:04:17]} 21. Nf4 {[%emt 0:01:35]} Nxf4 {[%emt 0:01:28]} 22. exf4 {[%emt 0:00:30]} Rc7 {[%emt 0:00:41]} 23. g4 {[%emt 0:07:04]} Rhc8 {[%emt 0:00:24]} 24. c3 {[%emt 0:01:10]} b5 {[%emt 0:00:43]} 25. Kb1 {[%emt 0:01:19]} b4 {[%emt 0:08:10]} 26. Rc5 {[%emt 0:09:29]} Bxe4+ {[%emt 0:01:48]} 27. Bxe4 {[%emt 0:00:04]} Rxc5 {[%emt 0:00:08]} 28. cxb4 {[%emt 0:00:13]} Rc4 {[%emt 0:00:45]} 29. Bd3 {[%emt 0:00:36]} Rxb4 {[%emt 0:00:46]} 30. Bxa6 {[%emt 0:00:08]} Rcb8 {[%emt 0:00:07]} 31. b3 {[%emt 0:00:26]} Rxf4 {[%emt 0:00:08]} 32. Rc1 {[%emt 0:01:29]} Rf2 {[%emt 0:01:31]} 33. Rc2 {[%emt 0:00:36]} Rxc2 {[%emt 0:00:39]} 34. Kxc2 {[%emt 0:00:03]} Ra8 {[%emt 0:00:02]} 35. Bb7 {[%emt 0:00:11]} Rxa2+ {[%emt 0:00:06]} 36. Kc3 {[%emt 0:00:02]} Kd6 {[%emt 0:00:47]} 37. b4 {[%emt 0:00:11]} Kc7 {[%emt 0:00:38]} 38. Bf3 {[%emt 0:00:12]} Kb6 {[%emt 0:00:12]} 39. Kc4 {[%emt 0:00:10]} Rc2+ {[%emt 0:00:20]} 40. Kb3 {[%emt 0:00:06]} Rc7 {[%emt 0:00:14]} 41. Be2 $19 {[%emt 0:01:06]} g6 {[%emt 0:00:57]} 42. Bc4 {[%emt 0:00:37]} Re7 {[%emt 0:00:30]} 43. Kc3 {[%emt 0:00:08]} e5 {[%emt 0:00:44]} 44. Kd3 {[%emt 0:00:19]} Rc7 {[%emt 0:01:57]} 45. Bd5 {[%emt 0:00:53]} Rd7 {[%emt 0:00:37]} 46. Ke4 {[%emt 0:00:23]} f6 {[%emt 0:00:39]} 47. Be6 {[%emt 0:01:21]} Rd4+ {[%emt 0:00:11]} 48. Kf3 {[%emt 0:00:03]} Rxb4 {[%emt 0:00:28]} 49. Bf7 {[%emt 0:00:05]} Rf4+ {[%emt 0:00:32]} 50. Kg3 {[%emt 0:00:05]} f5 {[%emt 0:00:09]} 51. gxf5 {[%emt 0:00:20]} gxf5 {[%emt 0:00:03]} 52. Be6 {[%emt 0:00:19]} Kc5 {[%emt 0:00:14]} 53. Kh3 {[%emt 0:00:07]} e4 {[%emt 0:00:15]} 54. g3 {[%emt 0:00:26]} Rf2 {[%emt 0:00:12]} 55. g4 {[%emt 0:00:11]} f4 {[%emt 0:00:08]} 56. g5 {[%emt 0:00:20]} hxg5 {[%emt 0:00:12]} 57. Kg4 {[%emt 0:00:03]} e3 {[%emt 0:00:09]} 0-1

[Event "Asian Academies Hybrid Chess-ch 2021"]
[Site "Tornelo"]
[Date "2021.11.21"]
[Round "1.4"]
[White "Babaei, Amir Hossein"]
[Black "Mohammadi, Mohamad Amin"]
[Result "0-1"]
[ECO "E90"]
[WhiteElo "1286"]
[BlackElo "1855"]
[Annotator "NA RC"]
[PlyCount "38"]
[EventDate "2021.11.21"]
[EventCountry "NET"]
[SourceTitle "playchess.com"]
[Source "ChessBase"]
[SourceQuality "1"]
[TimeControl "3600+30"]

1. d4 {[%emt 0:00:30]} Nf6 {[%emt 0:01:08]} 2. Nf3 {[%emt 0:00:15]} g6 {[%emt 0:00:21]} 3. c4 {[%emt 0:00:19]} Bg7 {[%emt 0:00:06]} 4. Nc3 {[%emt 0:00:06]} O-O {[%emt 0:00:05]} 5. e4 {[%emt 0:00:08]} d6 {[%emt 0:00:03]} 6. h3 {[%emt 0:00:10]} e5 {[%emt 0:00:36]} 7. d5 {[%emt 0:00:17]} Nh5 {[%emt 0:00:08]} 8. Qc2 {[%emt 0:00:52]} f5 {[%emt 0:01:36]} 9. Bg5 {[%emt 0:00:25]} Qe8 {[%emt 0:00:16]} 10. g4 {[%emt 0:06:20]} fxg4 {[%emt 0:11:13]} 11. hxg4 {[%emt 0:08:25]} Bxg4 {[%emt 0:02:53]} 12. Nh2 {[%emt 0:01:19]} Bd7 {[%emt 0:00:44]} 13. O-O-O {[%emt 0:01:34]} Na6 {[%emt 0:02:11]} 14. Be3 {[%emt 0:01:12]} Nf4 {[%emt 0:02:03]} 15. Be2 {[%emt 0:01:57]} Nb4 {[%emt 0:17:21]} 16. Qd2 {[%emt 0:06:46]} a5 {[%emt 0:05:46]} 17. a3 {[%emt 0:10:31]} Na6 {[%emt 0:05:32]} 18. Kb1 {[%emt 0:11:00]} Nc5 {[%emt 0:05:04]} 19. Nf3 {[%emt 0:02:13]} Nxe2 {[%emt 0:02:36]} 0-1

[Event "Asian Academies Hybrid Chess-ch 2021"]
[Site "Tornelo"]
[Date "2021.11.21"]
[Round "1.4"]
[White "Gholizadeh, Parya"]
[Black "Heydari, Simin"]
[Result "0-1"]
[ECO "D05"]
[WhiteElo "1256"]
[BlackElo "1147"]
[Annotator "NA RC"]
[PlyCount "68"]
[EventDate "2021.11.21"]
[EventCountry "NET"]
[SourceTitle "playchess.com"]
[Source "ChessBase"]
[SourceQuality "1"]
[TimeControl "3600+30"]

1. d4 {[%emt 0:17:00]} d5 {[%emt 0:00:43]} 2. Nf3 {[%emt 0:00:13]} Nf6 {[%emt 0:00:07]} 3. e3 {[%emt 0:00:07]} e6 {[%emt 0:00:04]} 4. Bd3 {[%emt 0:00:09]} Nbd7 {[%emt 0:00:03]} 5. Nbd2 {[%emt 0:00:09]} Bd6 {[%emt 0:00:06]} 6. O-O {[%emt 0:00:24]} O-O {[%emt 0:00:10]} 7. e4 {[%emt 0:01:50]} dxe4 {[%emt 0:00:11]} 8. Nxe4 {[%emt 0:00:54]} Nxe4 {[%emt 0:00:09]} 9. Bxe4 {[%emt 0:00:15]} Nf6 {[%emt 0:00:16]} 10. Bd3 {[%emt 0:01:01]} h6 {[%emt 0:01:03]} 11. Ne5 {[%emt 0:00:54]} c5 {[%emt 0:05:22]} 12. Nf3 {[%emt 0:05:03]} b6 {[%emt 0:02:03]} 13. c3 {[%emt 0:06:13]} cxd4 {[%emt 0:02:28]} 14. Nxd4 {[%emt 0:01:31]} Bd7 {[%emt 0:03:33]} 15. Nb5 {[%emt 0:06:30]} Bxb5 {[%emt 0:00:27]} 16. Bxb5 {[%emt 0:00:10]} Qc7 {[%emt 0:03:12]} 17. h3 {[%emt 0:00:23]} Rfd8 {[%emt 0:00:42]} 18. Qf3 {[%emt 0:00:11]} a6 {[%emt 0:00:43]} 19. Ba4 {[%emt 0:01:21]} Nd5 {[%emt 0:00:49]} 20. Bc2 {[%emt 0:02:31]} Rac8 {[%emt 0:07:48]} 21. Qd3 {[%emt 0:02:49]} Nf6 {[%emt 0:04:05]} 22. Qxa6 {[%emt 0:00:15]} Be7 {[%emt 0:02:43]} 23. Be3 {[%emt 0:00:46]} Bc5 {[%emt 0:00:21]} 24. Bxc5 {[%emt 0:00:56]} Qxc5 {[%emt 0:00:33]} 25. Rad1 {[%emt 0:00:27]} Nd5 {[%emt 0:01:24]} 26. Qd3 {[%emt 0:00:53]} f5 {[%emt 0:00:20]} 27. Qg3 {[%emt 0:01:46]} Qd6 {[%emt 0:02:12]} 28. Qxd6 {[%emt 0:01:07]} Rxd6 {[%emt 0:00:12]} 29. Rfe1 {[%emt 0:00:15]} Kf7 {[%emt 0:00:19]} 30. Bb3 {[%emt 0:00:14]} b5 {[%emt 0:00:54]} 31. Bxd5 {[%emt 0:01:08]} Rxd5 {[%emt 0:00:28]} 32. Rxd5 {[%emt 0:00:45]} exd5 {[%emt 0:00:08]} 33. Re5 {[%emt 0:00:25]} Rc5 {[%emt 0:00:38]} 34. Rxf5+ {[%emt 0:01:21]} Ke6 {[%emt 0:02:10]} 0-1